fUSD/lending_fUSD_20250826
["ID","MTS","AMOUNT","RATE_DAILY","PERIOD"]
[381452260,1756216238096,-165.97163042,0.000179,2]
[381452261,1756216238106,-42.84929135,0.000179,2]
[381452262,1756216238118,-164.07977202,0.000179,2]
[381452263,1756216238127,-153.90150545,0.000179,2]
[381452264,1756216238143,-400.03831907,0.000179,2]
[381452265,1756216238156,-837.57754225,0.000179,2]
[381452266,1756216238168,-4872.34324115,0.000179,2]
[381452267,1756216238177,-629.90947008,0.000179,2]
[381452268,1756216238187,-500.0,0.00017944,2]
[381452269,1756216238197,-3819.75292129,0.00017945,2]
[381452270,1756216238206,-1500.0,0.00017969,2]
[381452271,1756216238216,-4045.0,0.00017973,2]
[381452272,1756216238226,-500.0,0.00017973,2]
[381452273,1756216238235,-500.0,0.00017973,2]
[381452274,1756216238245,-341.93999063,0.00017973,2]
[381452275,1756216238255,-502.16422154,0.00017973,2]
[381452276,1756216238265,-500.0,0.00017973,2]
[381452277,1756216238275,-500.0,0.00017973,2]
[381452278,1756216238285,-500.0,0.00017973,2]
[381452279,1756216238294,-500.0,0.00017973,2]
[381452280,1756216238303,-500.0,0.00017973,2]
[381452281,1756216238313,-502.72473506,0.00017973,2]
[381452282,1756216238322,-159.79360763,0.00017973,2]
[381452283,1756216238331,-500.0,0.00017973,2]
[381452284,1756216238341,-500.0,0.00017973,2]
[381452285,1756216238350,-3300.0,0.0001799,5]
[381452286,1756216238360,-213.27119121,0.0001799,2]
[381452287,1756216238369,-500.0,0.00017998,2]
[381452288,1756216238378,-500.0,0.00017998,2]
[381452289,1756216238388,-500.0,0.00017998,2]
[381452290,1756216238398,-500.0,0.00017998,2]
[381452291,1756216238407,-500.0,0.00017998,2]
[381452293,1756216238417,-500.0,0.00017998,2]
[381452295,1756216238427,-500.0,0.00017998,2]
[381452296,1756216238436,-500.0,0.00017998,2]
[381452297,1756216238445,-500.0,0.00017998,2]
[381452298,1756216238455,-500.0,0.00017998,2]
[381452299,1756216238464,-500.0,0.00017998,2]
[381452301,1756216238474,-500.0,0.00017998,2]
[381452303,1756216238484,-421.86424174,0.00017998,2]
[381452305,1756216238493,-933.76377523,0.00017999,2]
[381452307,1756216238503,-500.0,0.00017999,2]
[381452309,1756216238512,-666.0,0.00017999,2]
[381452311,1756216238521,-2544.8389555,0.00017999,2]
[381452313,1756216238531,-300.0,0.00017999,2]
[381452315,1756216238540,-300.0,0.00017999,2]
[381452317,1756216238549,-300.0,0.00017999,2]
[381452319,1756216238558,-300.0,0.00017999,2]
[381452320,1756216238568,-300.0,0.00017999,2]
[381452322,1756216238577,-300.0,0.00017999,2]
[381452324,1756216238587,-1237.6,0.00017999,2]
[381452326,1756216238596,-6159.03364894,0.00017999,2]
[381452328,1756216238608,-40308.42762625,0.00017999,2]
[381452331,1756216238619,-10877.45617318,0.00017999,2]
[381452333,1756216238631,-5906.0,0.00017999,2]
[381452335,1756216238642,-451.0506,0.00017999,2]
[381452338,1756216238661,-4614.9662908,0.00017999,2]
[381452340,1756216238673,-958.09126563,0.00017999,2]
[381452342,1756216238683,-27.32981819,0.00017999,2]
[381452510,1756216240175,-272.67018181,0.00017999,2]
[381452512,1756216240184,-150.0,0.00017999,2]
[381452513,1756216240194,-666.0,0.00017999,2]
[381452515,1756216240203,-7029.58129921,0.00017999,2]
[381452523,1756216240404,-5534.31299767,0.00017999,2]
[381452531,1756216240463,-406.78185936,0.00017999,2]
[381452575,1756216240881,-6888.1,0.00017999,2]
[381452811,1756216243180,-278.02196257,0.00017999,2]
[381453112,1756216246054,-664.33708191,0.00017999,2]
[381453114,1756216246067,-509.22468572,0.00017999,2]
[381453137,1756216246284,-5483.5,0.00017999,2]
[381454160,1756217115638,-1200.0,0.00014858,2]
[381454168,1756217139171,314.07,0.00013699,2]
[381454169,1756217139431,150.0,0.00014199,3]
[381454170,1756217142726,7243.22537294,0.00014759,2]
[381454173,1756217178437,676.59,0.00014858,2]
[381454175,1756217276421,151.0,0.00023,30]
[381454185,1756217432426,-1000.0,0.00014859,3]
[381454186,1756217432436,-150.0,0.00014859,2]
[381454187,1756217432446,-23.6879997,0.00014859,2]
[381454188,1756217432458,-126.3120003,0.00014859,2]
[381454191,1756217432467,-165.25122969,0.00014859,2]
[381454193,1756217432862,-150.0,0.00015259,3]
[381454194,1756217432871,-390.0,0.000162,2]
[381454195,1756217432884,-150.0,0.00016344,2]
[381454196,1756217432893,-150.0,0.00016344,2]
[381454197,1756217432902,-1000.0,0.00016344,3]
[381454198,1756217432912,-1094.57,0.00016452,2]
[381454199,1756217432921,-1133.72417526,0.00016791,2]
[381454200,1756217432932,-66.27582474,0.00016791,2]
[381454201,1756217432941,-239.783472,0.00016792,2]
[381454202,1756217432951,-174.35,0.00016806,2]
[381454203,1756217432960,-24.25676326,0.00016811,2]
[381454204,1756217432971,-215.52670874,0.00016811,2]
[381454205,1756217432981,-239.783472,0.00016829,2]
[381454206,1756217432991,-239.783472,0.00016848,2]
[381454207,1756217433000,-239.783472,0.00016867,2]
[381454208,1756217433009,-239.783472,0.00016886,2]
[381454209,1756217433019,-239.783472,0.00016905,2]
[381454210,1756217433028,-239.783472,0.00016924,2]
[381454211,1756217433038,-300.0,0.00016941,2]
[381454212,1756217433047,-300.0,0.00016941,2]
[381454213,1756217433058,-1200.0,0.00016942,2]
[381454214,1756217433068,-239.783472,0.00016943,2]
[381454215,1756217433078,-239.783472,0.00016961,2]
[381454216,1756217433088,-239.783472,0.0001698,2]
[381454217,1756217433097,-239.783472,0.00016999,2]
[381454218,1756217433107,-239.783472,0.00017018,2]
[381454219,1756217433117,-239.783472,0.00017037,2]
[381454220,1756217433131,-239.783472,0.00017056,2]
[381454221,1756217433142,-302.07,0.00017068,2]
[381454222,1756217433152,-150.85,0.00017068,2]
[381454223,1756217433162,-539.77,0.00017068,2]
[381454224,1756217433172,-239.783472,0.00017074,2]
[381454225,1756217433183,-239.783472,0.00017093,2]
[381454226,1756217433193,-239.783472,0.00017112,2]
[381454227,1756217433203,-239.783472,0.00017131,2]
[381454228,1756217433213,-239.783472,0.0001715,2]
[381454229,1756217433223,-239.783472,0.00017169,2]
[381454230,1756217433233,-239.783472,0.00017188,2]
[381454231,1756217433242,-1500.0,0.00017192,2]
[381454232,1756217433252,-239.783472,0.00017206,2]
[381454233,1756217433262,-239.783472,0.00017225,2]
[381454234,1756217433272,-239.783472,0.00017244,2]
[381454235,1756217433282,-239.783472,0.00017263,2]
[381454236,1756217433292,-239.783472,0.00017282,2]
[381454237,1756217433302,-239.783472,0.00017301,2]
[381454238,1756217433312,-239.783472,0.00017319,2]
[381454239,1756217433322,-239.783472,0.00017338,2]
[381454240,1756217433332,-239.783472,0.00017357,2]
[381454241,1756217433341,-239.783472,0.00017376,2]
[381454242,1756217433351,-382.0,0.0001738,2]
[381454243,1756217433361,-239.783472,0.00017395,2]
[381454244,1756217433371,-239.783472,0.00017414,2]
[381454245,1756217433383,-239.783472,0.00017433,2]
[381454246,1756217433393,-239.783472,0.00017451,2]
[381454247,1756217433403,-239.783472,0.0001747,2]
[381454248,1756217433412,-239.783472,0.00017489,2]
[381454249,1756217433422,-239.783472,0.00017508,2]
[381454250,1756217433431,-239.783472,0.00017527,2]
[381454251,1756217433441,-239.783472,0.00017546,2]
[381454252,1756217433451,-239.783472,0.00017564,2]
[381454253,1756217433460,-239.783472,0.00017583,2]
[381454254,1756217433470,-239.783472,0.00017602,2]
[381454255,1756217433480,-239.783472,0.00017621,2]
[381454256,1756217433489,-239.783472,0.0001764,2]
[381454257,1756217433498,-239.783472,0.00017659,2]
[381454258,1756217433507,-168.0,0.00017676,2]
[381454259,1756217433517,-239.783472,0.00017678,2]
[381454260,1756217433526,-239.783472,0.00017696,2]
[381454261,1756217433536,-239.783472,0.00017715,2]
[381454262,1756217433546,-539.23,0.00017726,2]
[381454263,1756217433555,-239.783472,0.00017734,2]
[381454264,1756217433567,-239.783472,0.00017753,2]
[381454265,1756217433577,-166.12,0.00017753,2]
[381454266,1756217433587,-239.783472,0.00017772,2]
[381454267,1756217433596,-239.783472,0.00017791,2]
[381454268,1756217433606,-239.783472,0.00017809,2]
[381454269,1756217433615,-1850.75021,0.0001782,2]
[381454270,1756217433625,-239.783472,0.00017828,2]
[381454271,1756217433642,-239.783472,0.00017847,2]
[381454272,1756217433651,-239.783472,0.00017866,2]
[381454273,1756217433661,-239.783472,0.00017885,2]
[381454274,1756217433673,-1000.0,0.00017885,2]
[381454275,1756217433684,-938.26,0.0001789,2]
[381454276,1756217433694,-342.78,0.0001789,2]
[381454277,1756217433704,-166.12,0.0001789,2]
[381454278,1756217433714,-336.23,0.0001789,2]
[381454279,1756217433724,-378.73599631,0.00017891,2]
[381454280,1756217433734,-2674.60743027,0.00017891,2]
[381454281,1756217433744,-695.39793187,0.00017891,2]
[381454282,1756217433754,-322.6107,0.00017891,2]
[381454283,1756217433764,-267.46074303,0.00017891,2]
[381454284,1756217433774,-157.17282925,0.00017897,2]
[381454285,1756217433784,-159.29703058,0.00017898,2]
[381454286,1756217433794,-330.61185149,0.00017898,2]
[381454287,1756217433804,-7947.47113533,0.00017898,2]
[381454288,1756217433814,-2500.0,0.00017898,2]
[381454289,1756217433825,-1000.0,0.00017899,2]
[381454290,1756217433834,-6110.3535015,0.00017899,2]
[381454291,1756217433844,-5000.0,0.000179,2]
[381454292,1756217433853,-174.52275976,0.000179,2]
[381454293,1756217433864,-427.58501442,0.000179,2]
[381454294,1756217433876,-524.9245584,0.000179,2]
[381454295,1756217433886,-239.783472,0.00017904,2]
[381454296,1756217433895,-1000.0,0.00017917,2]
[381454297,1756217433911,-239.783472,0.00017923,2]
[381454298,1756217433921,-239.783472,0.00017941,2]
[381454299,1756217433932,-239.783472,0.0001796,2]
[381454300,1756217433942,-1625.52305538,0.0001797,2]
[381454301,1756217433952,-500.0,0.00017973,2]
[381454302,1756217433962,-500.0,0.00017973,2]
[381454303,1756217433972,-501.57039534,0.00017973,2]
[381454304,1756217433983,-500.0,0.00017973,2]
[381454305,1756217433993,-500.0,0.00017973,2]
[381454306,1756217434002,-500.0,0.00017973,2]
[381454307,1756217434013,-500.89684719,0.00017973,2]
[381454308,1756217434023,-381.15888697,0.00017973,2]
[381454309,1756217434033,-500.0,0.00017973,2]
[381454310,1756217434043,-403.80484135,0.00017977,2]
[381454311,1756217434054,-239.783472,0.00017979,2]
[381454312,1756217434064,-3254.1690654,0.00017986,2]
[381454313,1756217434074,-284.36158827,0.0001799,2]
[381454314,1756217434084,-1173.0,0.00017991,2]
[381454315,1756217434094,-895.0,0.00017991,2]
[381454316,1756217434103,-6146.0,0.00017991,2]
[381454317,1756217434113,-4155.0,0.00017991,2]
[381454318,1756217434126,-21104.0,0.00017991,2]
[381454319,1756217434137,-718.0,0.00017991,2]
[381454320,1756217434147,-2381.3119,0.00017997,2]
[381454321,1756217434158,-3000.12,0.00017997,2]
[381454322,1756217434168,-693.2307147,0.00017997,2]
[381454323,1756217434180,-1186.03,0.00017997,2]
[381454324,1756217434190,-6314.39610642,0.00017997,2]
[381454325,1756217434200,-162305.4173685,0.00017997,2]
[381454326,1756217434215,-40542.03795028,0.00017997,2]
[381454327,1756217434227,-1408.099995,0.00017997,2]
[381454328,1756217434238,-3494.8718,0.00017997,2]
[381454329,1756217434260,-339.01560431,0.00017997,2]
[381454330,1756217434271,-2000.0,0.00017997,2]
[381454331,1756217434283,-1138.2012972,0.00017997,2]
[381454332,1756217434326,-150.0,0.00015359,3]
[381454333,1756217434336,-7861.72950065,0.00017997,2]
[381454334,1756217434348,-7572.28334795,0.00017997,2]
[381454335,1756217434359,-1240.63665632,0.00017997,2]
[381454336,1756217434377,-300.0,0.00017599,3]
[381454337,1756217434387,-845.82144173,0.00017997,2]
[381454338,1756217434398,-464.09513756,0.00017997,2]
[381454339,1756217438404,-700.17242336,0.00017997,2]
[381454340,1756217438416,-446.73,0.00017997,2]
[381454341,1756217438454,-173344.58493801,0.00017997,2]
[381454342,1756217438465,-239.783472,0.00017998,2]
[381454343,1756217438474,-17770.05823502,0.00017998,2]
[381454344,1756217438486,-437.70943335,0.00017998,2]
[381454345,1756217438564,-673.02212015,0.00017998,2]
[381454346,1756217438575,-256.9635532,0.00017998,2]
[381454347,1756217438588,-330.47581602,0.00017998,2]
[381454493,1756217440330,-476.10031168,0.00017998,2]
[381454495,1756217440343,-4237.92324385,0.00017998,2]
[381454507,1756217440460,-728.59933714,0.00017998,2]
[381454520,1756217440579,-2225.60658504,0.00017998,2]
[381454523,1756217440591,-428.45326144,0.00017998,2]
[381454525,1756217440604,-1794.03332723,0.00017998,2]
[381454566,1756217443412,-552.10264082,0.00017998,2]
[381454567,1756217443527,-805.49977141,0.00017998,2]
[381454568,1756217443638,-21087.29115541,0.00017998,2]
[381454574,1756217446544,-146120.55865144,0.00017998,2]
[381454575,1756217446554,-2705.4321484,0.00017998,2]
[381454576,1756217446563,-1997.5208703,0.00017998,2]
[381454577,1756217446573,-5072.9982641,0.00017998,2]
[381454578,1756217446583,-552.0,0.00017998,2]
[381454579,1756217446592,-80575.09227596,0.00017999,2]
[381454580,1756217446602,-2000.0,0.00017999,2]
[381454581,1756217446611,-155.0,0.00017999,2]
[381454582,1756217446621,-200.0,0.00017999,2]
[381454583,1756217446630,-300.0,0.00017999,2]
[381454584,1756217446643,-34167.40547538,0.00017999,2]
[381454585,1756217446653,-300.0,0.00017999,2]
[381454586,1756217446662,-300.0,0.00017999,2]
[381454587,1756217446672,-300.0,0.00017999,2]
[381454588,1756217446681,-200.0,0.00017999,2]
[381454589,1756217446691,-300.0,0.00017999,2]
[381454590,1756217446701,-200.0,0.00017999,2]
[381454591,1756217446711,-150.0,0.00017999,2]
[381454592,1756217446720,-715.47683129,0.00017999,2]
[381454593,1756217446730,-212.27709567,0.00017999,2]
[381454594,1756217446739,-288.6568387,0.00017999,2]
[381454595,1756217446748,-648.81422339,0.00017999,2]
[381454596,1756217446758,-342.63143635,0.00017999,2]
[381454597,1756217446768,-466.53624127,0.00017999,2]
[381454598,1756217446778,-500.0,0.00017999,2]
[381454599,1756217446787,-500.0,0.00017999,2]
[381454600,1756217446796,-571.10400999,0.00017999,2]
[381454601,1756217446805,-266.92751746,0.00017999,2]
[381454602,1756217446815,-102303.07082196,0.00018,2]
[381454603,1756217446826,-126947.64540033,0.00018,2]
[381454604,1756217446845,-3668.1068976,0.00018,2]
[381454615,1756217676061,501.21,0.00028767,120]
[381454631,1756218147063,3422.0,0.0001489,2]
[381455720,1756218618465,316.84,0.00013699,2]
[381455721,1756218618716,150.0,0.00014199,3]
[381455729,1756218631618,-710.0,0.00015,5]
[381455730,1756218631628,-150.0,0.00015097,2]
[381455731,1756218631638,-1000.0,0.00015195,3]
[381455732,1756218631648,-300.0,0.00016439,3]
[381455733,1756218631658,-1000.0,0.000165,3]
[381455734,1756218631668,-150.0,0.000165,2]
[381455735,1756218631677,-250.0,0.000165,2]
[381455736,1756218631686,-265.72,0.00016619,2]
[381455737,1756218631695,-160.97281912,0.00016642,2]
[381455738,1756218631707,-39.02718088,0.00016642,2]
[381455739,1756218631717,-160.0,0.00016672,7]
[381455740,1756218631726,-190.39,0.00016899,2]
[381455741,1756218631735,-1200.0,0.00016963,2]
[381455742,1756218631744,-150.0,0.00016964,2]
[381455743,1756218631753,-2960.33996847,0.00016964,2]
[381455744,1756218631765,-145.10003153,0.00016964,2]
[381455745,1756218631774,-141.80996847,0.00016964,2]
[381455746,1756218631785,-1291.48003153,0.00016964,2]
[381455747,1756218631794,-150.0,0.00016999,2]
[381455748,1756218631803,-150.99,0.00016999,2]
[381455749,1756218631813,-374.0,0.00017,2]
[381455750,1756218631822,-150.0,0.00017034,2]
[381455751,1756218631832,-150.0,0.00017069,2]
[381455752,1756218631841,-150.0,0.00017104,2]
[381455753,1756218631851,-150.0,0.00017139,2]
[381455754,1756218631860,-150.0,0.00017174,2]
[381455755,1756218631870,-150.0,0.00017209,2]
[381455756,1756218631879,-150.0,0.00017244,2]
[381455757,1756218631888,-150.0,0.00017279,2]
[381455758,1756218631898,-150.0,0.00017313,2]
[381455759,1756218631906,-150.0,0.00017348,2]
[381455760,1756218631915,-150.0,0.00017383,2]
[381455761,1756218631924,-150.0,0.00017418,2]
[381455762,1756218631934,-1500.0,0.00017431,2]
[381455764,1756218631943,-150.0,0.00017453,2]
[381455766,1756218631952,-150.0,0.00017453,2]
[381455768,1756218631962,-143.87990188,0.00017459,2]
[381455771,1756218631974,-159.51076612,0.00017459,2]
[381455772,1756218631983,-1075.55350242,0.00017472,2]
[381455773,1756218632001,-124.44649758,0.00017472,2]
[381455774,1756218632011,-4515.5574956,0.00017474,2]
[381455776,1756218632031,-300.4419131,0.00017474,2]
[381455779,1756218632048,-3184.0005913,0.00017474,2]
[381455781,1756218632057,-150.0,0.00017488,2]
[381455782,1756218632066,-150.0,0.00017523,2]
[381455783,1756218632075,-150.0,0.00017558,2]
[381455784,1756218632085,-150.0,0.00017593,2]
[381455785,1756218632094,-150.0,0.00017628,2]
[381455786,1756218632104,-150.0,0.00017663,2]
[381455787,1756218632113,-150.0,0.00017697,2]
[381455788,1756218632122,-2088.53,0.000177,2]
[381455789,1756218632133,-1351.75,0.00017728,2]
[381455790,1756218632143,-150.0,0.00017732,2]
[381455791,1756218632152,-150.0,0.00017767,2]
[381455792,1756218632161,-500.0,0.00017798,2]
[381455793,1756218632171,-151.0,0.00017798,2]
[381455794,1756218632180,-151.0,0.00017798,2]
[381455795,1756218632189,-180.27983694,0.00017798,2]
[381455796,1756218632198,-278.71952951,0.00017798,2]
[381455797,1756218632207,-500.0,0.00017798,2]
[381455798,1756218632216,-500.0,0.00017798,2]
[381455799,1756218632225,-500.0,0.00017798,2]
[381455800,1756218632234,-500.0,0.00017798,2]
[381455801,1756218632243,-500.0,0.00017798,2]
[381455802,1756218632252,-500.0,0.00017798,2]
[381455803,1756218632261,-500.0,0.00017798,2]
[381455804,1756218632270,-500.0,0.00017798,2]
[381455805,1756218632280,-500.0,0.00017798,2]
[381455806,1756218632289,-500.0,0.00017798,2]
[381455807,1756218632298,-500.0,0.00017798,2]
[381455808,1756218632307,-600.0,0.00017798,2]
[381455809,1756218632316,-150.0,0.00017802,2]
[381455810,1756218632325,-150.0,0.00017808,2]
[381455811,1756218632334,-150.0,0.00017808,2]
[381455812,1756218632343,-500.0,0.00017808,2]
[381455813,1756218632354,-255.41841776,0.00017808,2]
[381455814,1756218632364,-500.0,0.00017808,2]
[381455815,1756218632373,-150.0,0.00017808,2]
[381455816,1756218632383,-151.20010376,0.00017808,2]
[381455817,1756218632392,-500.0,0.00017808,2]
[381455818,1756218632402,-500.0,0.00017808,2]
[381455819,1756218632411,-240.4467272,0.00017808,2]
[381455820,1756218632421,-500.0,0.00017808,2]
[381455821,1756218632430,-1322.0,0.00017808,2]
[381455822,1756218632440,-500.0,0.00017808,2]
[381455823,1756218632450,-150.54381171,0.00017808,2]
[381455824,1756218632460,-433.0,0.00017808,2]
[381455825,1756218632469,-150.0,0.00017808,2]
[381455826,1756218632479,-500.0,0.00017808,2]
[381455827,1756218632489,-500.0,0.00017808,2]
[381455828,1756218632499,-150.0,0.00017808,2]
[381455829,1756218632508,-150.0,0.00017808,2]
[381455830,1756218632518,-150.0,0.00017808,2]
[381455831,1756218632527,-150.0,0.00017808,2]
[381455832,1756218632537,-244.84615314,0.00017808,2]
[381455833,1756218632549,-150.0,0.00017808,2]
[381455834,1756218632560,-500.0,0.00017808,2]
[381455835,1756218632570,-150.0,0.00017808,2]
[381455836,1756218632579,-500.0,0.00017808,2]
[381455837,1756218632589,-150.0,0.00017808,2]
[381455838,1756218632599,-837.0,0.00017808,2]
[381455839,1756218632608,-568.0,0.00017808,2]
[381455840,1756218632618,-236.93645079,0.00017808,2]
[381455841,1756218632627,-1455.0,0.00017808,2]
[381455842,1756218632637,-1000.0,0.00017808,2]
[381455843,1756218632646,-1000.0,0.00017808,2]
[381455844,1756218632655,-1000.0,0.00017808,2]
[381455845,1756218632664,-1000.0,0.00017808,2]
[381455846,1756218632674,-1000.0,0.00017808,2]
[381455847,1756218632683,-478.913665,0.00017808,2]
[381455848,1756218632713,-521.086335,0.00017808,2]
[381455849,1756218632722,-1000.0,0.00017808,2]
[381455850,1756218632731,-449.21323392,0.00017808,2]
[381455851,1756218632753,-550.78676608,0.00017808,2]
[381455852,1756218632763,-1000.0,0.00017808,2]
[381455853,1756218632773,-1000.0,0.00017808,2]
[381455854,1756218632782,-1000.0,0.00017808,2]
[381455855,1756218632791,-1000.0,0.00017808,2]
[381455856,1756218632801,-1000.0,0.00017808,2]
[381455857,1756218632810,-1000.0,0.00017808,2]
[381455858,1756218632819,-1000.0,0.00017808,2]
[381455859,1756218632828,-944.80918357,0.00017808,2]
[381455860,1756218632839,-55.19081643,0.00017808,2]
[381455861,1756218632849,-294.12751011,0.00017808,2]
[381455893,1756218638069,-466.86261706,0.000178,2]
[381455895,1756218638085,-2933.900002,0.000178,2]
[381455898,1756218638097,-2149.93729945,0.000178,2]
[381455901,1756218638118,-1602.02410326,0.000178,2]
[381455903,1756218638128,-705.87248989,0.00017808,2]
[381455905,1756218638137,-1000.0,0.00017808,2]
[381455907,1756218638147,-948.9306952,0.00017808,2]
[381455909,1756218638164,-51.0693048,0.00017808,2]
[381455911,1756218638173,-1000.0,0.00017808,2]
[381455913,1756218638183,-1000.0,0.00017808,2]
[381455915,1756218638192,-1000.0,0.00017808,2]
[381455917,1756218638201,-1000.0,0.00017808,2]
[381455919,1756218638211,-1000.0,0.00017808,2]
[381455921,1756218638220,-1000.0,0.00017808,2]
[381455923,1756218638229,-1000.0,0.00017808,2]
[381455925,1756218638239,-1000.0,0.00017808,2]
[381455927,1756218638248,-1000.0,0.00017808,2]
[381455929,1756218638257,-1000.0,0.00017808,2]
[381455931,1756218638266,-1000.0,0.00017808,2]
[381455933,1756218638275,-1000.0,0.00017808,2]
[381455935,1756218638284,-1000.0,0.00017808,2]
[381455937,1756218638294,-1000.0,0.00017808,2]
[381455939,1756218638304,-1000.0,0.00017808,2]
[381455941,1756218638314,-1000.0,0.00017808,2]
[381455943,1756218638324,-1000.0,0.00017808,2]
[381455945,1756218638334,-1000.0,0.00017808,2]
[381455947,1756218638344,-1000.0,0.00017808,2]
[381455949,1756218638357,-1000.0,0.00017808,2]
[381455951,1756218638367,-1000.0,0.00017808,2]
[381455953,1756218638376,-1000.0,0.00017808,2]
[381455955,1756218638386,-1000.0,0.00017808,2]
[381455957,1756218638396,-1000.0,0.00017808,2]
[381455959,1756218638406,-1000.0,0.00017808,2]
[381455961,1756218638416,-1000.0,0.00017808,2]
[381455963,1756218638426,-1000.0,0.00017808,2]
[381455965,1756218638436,-1000.0,0.00017808,2]
[381455967,1756218638446,-1000.0,0.00017808,2]
[381455969,1756218638455,-1000.0,0.00017808,2]
[381455970,1756218638464,-1000.0,0.00017808,2]
[381455972,1756218638474,-1000.0,0.00017808,2]
[381455975,1756218638484,-1000.0,0.00017808,2]
[381455976,1756218638494,-72.94505681,0.00017808,2]
[381455980,1756218638514,-927.05494319,0.00017808,2]
[381455981,1756218638523,-1000.0,0.00017808,2]
[381455991,1756218638890,-1000.0,0.00017808,2]
[381455992,1756218638900,-1831.11552105,0.00017808,2]
[381455993,1756218638910,-150.0,0.00017837,2]
[381455994,1756218638919,-500.0,0.00017853,2]
[381455995,1756218638929,-200.0,0.00017856,2]
[381455996,1756218638940,-150.0,0.00017872,2]
[381455997,1756218638949,-1256.0,0.00017875,2]
[381455998,1756218638958,-2524.82941417,0.00017891,2]
[381455999,1756218638967,-1000.0,0.00017891,2]
[381456000,1756218638977,-695.39793187,0.00017891,2]
[381456001,1756218638986,-151.0,0.00017891,2]
[381456002,1756218638995,-151.0,0.00017891,2]
[381456003,1756218639005,-151.0,0.00017891,2]
[381456004,1756218639014,-1000.0,0.00017891,2]
[381456005,1756218639023,-151.0,0.00017891,2]
[381456006,1756218639033,-629.88254788,0.00017891,2]
[381456007,1756218639043,-151.0,0.00017891,2]
[381456008,1756218639052,-151.0,0.00017891,2]
[381456009,1756218639062,-151.83951809,0.00017891,2]
[381456010,1756218639071,-267.46074303,0.00017891,2]
[381456011,1756218639080,-300.0,0.00017891,2]
[381456012,1756218639090,-322.6107,0.00017891,2]
[381456013,1756218639099,-1000.0,0.00017898,2]
[381456014,1756218639110,-5000.0,0.000179,2]
[381456015,1756218639120,-159.29703053,0.000179,2]
[381456016,1756218639129,-289.28537001,0.000179,2]
[381456017,1756218639139,-174.5227597,0.000179,2]
[381456018,1756218639148,-54993.1815135,0.000179,2]
[381456019,1756218639158,-285.05667628,0.000179,2]
[381456020,1756218639168,-526.0205405,0.000179,3]
[381456021,1756218639177,-437.437132,0.000179,2]
[381456022,1756218639187,-150.0,0.00017907,2]
[381456023,1756218639198,-150.0,0.00017942,2]
[381456024,1756218639207,-2618.2481025,0.00017946,2]
[381456025,1756218639217,-215.05792461,0.0001795,2]
[381456026,1756218639227,-1689.0,0.00017962,2]
[381456027,1756218639236,-166.12,0.00017964,2]
[381456028,1756218639246,-500.0,0.00017973,2]
[381456029,1756218639255,-500.0,0.00017973,2]
[381456030,1756218639265,-500.0,0.00017973,2]
[381456031,1756218639275,-150.0,0.00017977,2]
[381456032,1756218639285,-5594.3715675,0.00017987,2]
[381456033,1756218639295,-12560.00395324,0.00017989,2]
[381456034,1756218639304,-174.56711222,0.00017989,2]
[381456035,1756218639313,-70106.03,0.0001799,2]
[381456036,1756218639322,-14852.7709185,0.00017999,2]
[381456037,1756218639332,-300.0,0.00017999,2]
[381456038,1756218639342,-300.0,0.00017999,2]
[381456039,1756218639352,-42435.577739,0.00017999,2]
[381456040,1756218639365,-1136.62,0.00017999,2]
[381456041,1756218639374,-2000.0,0.00017999,2]
[381456042,1756218639384,-150.0,0.00017999,2]